bitfinex/quotes_BTCUSD_20250127
["timestamp","ask_amount","ask_price","bid_price","bid_amount"]
[1737971706592,0.0001416,99326.0,99325.0,1.801019]
[1737971707417,0.0001416,99326.0,99325.0,0.301019]
[1737971707628,0.0001416,99326.0,99325.0,0.151019]
[1737971708705,0.01890874,99326.0,99325.0,0.151019]
[1737971710992,0.04892779,99326.0,99325.0,0.151019]
[1737971711854,0.04892779,99326.0,99325.0,0.152019]
[1737971712063,0.01890874,99326.0,99325.0,0.152019]
[1737971712536,0.01890874,99326.0,99325.0,0.150797]
[1737971712954,0.0001416,99326.0,99325.0,0.150797]
[1737971713160,0.04903406,99326.0,99325.0,0.150797]
[1737971714503,0.04903406,99326.0,99325.0,0.149797]
[1737971714938,0.04903406,99326.0,99325.0,0.150797]
[1737971715115,0.04903406,99326.0,99325.0,0.149797]
[1737971715294,0.04903406,99326.0,99325.0,0.150797]
[1737971715495,0.04903406,99326.0,99325.0,0.300797]
[1737971715724,0.01894639,99326.0,99325.0,0.300797]
[1737971716143,0.01894639,99326.0,99325.0,0.299797]
[1737971718756,0.01894639,99326.0,99325.0,0.300797]
[1737971718968,0.01894639,99326.0,99325.0,0.299797]
[1737971719404,0.01894639,99326.0,99325.0,0.42014429]
[1737971719631,0.01894639,99326.0,99325.0,0.54544429]
[1737971719895,0.0001416,99326.0,99325.0,0.54544429]
[1737971720311,0.0001416,99326.0,99325.0,0.54644429]
[1737971721601,0.0001416,99326.0,99325.0,0.54544429]
[1737971722531,0.31988249,99353.0,99352.0,0.150978]
[1737971723708,0.31988249,99353.0,99352.0,0.15147113]
[1737971724099,0.32088249,99353.0,99352.0,0.15147113]
[1737971725279,0.32188249,99353.0,99352.0,0.15147113]
[1737971725705,0.32188249,99353.0,99352.0,0.00049313]
[1737971725904,0.32088249,99353.0,99352.0,0.15147113]
[1737971726333,0.32088249,99353.0,99352.0,0.15247113]
[1737971726556,0.32088249,99353.0,99352.0,0.15147113]
[1737971726777,0.31988249,99353.0,99352.0,0.15147113]
[1737971726956,0.32088249,99353.0,99352.0,0.15147113]
[1737971729893,0.32102409,99353.0,99352.0,0.15147113]
[1737971732849,0.32102409,99353.0,99352.0,0.00049313]
[1737971733276,0.32002409,99353.0,99352.0,0.00049313]
[1737971733687,0.32602409,99353.0,99352.0,0.15147113]
[1737971734105,0.32502409,99353.0,99352.0,0.15147113]
[1737971734305,0.34384274,99353.0,99352.0,0.15147113]
[1737971734460,0.34484274,99353.0,99352.0,0.15147113]
[1737971735065,0.34384274,99353.0,99352.0,0.15147113]
[1737971735444,0.33884274,99353.0,99352.0,0.15147113]
[1737971735818,0.34284274,99353.0,99352.0,0.15147113]
[1737971736019,0.33884274,99353.0,99352.0,0.00049313]
[1737971736243,0.61730784,99353.0,99352.0,0.00049313]
[1737971736457,0.62030784,99353.0,99352.0,0.00049313]
[1737971736767,0.61930784,99353.0,99352.0,0.00049313]
[1737971736980,0.62330784,99353.0,99352.0,0.00049313]
[1737971737373,0.62130784,99353.0,99352.0,0.00049313]
[1737971737594,0.59116603,99353.0,99352.0,0.00049313]
[1737971738750,0.58243925,99353.0,99352.0,0.00049313]
[1737971738996,0.57843925,99353.0,99352.0,0.00049313]
[1737971739433,0.57843925,99353.0,99352.0,0.00149313]
[1737971743000,0.63332291,99353.0,99352.0,0.00179049]
[1737971743894,0.60316686,99353.0,99352.0,0.00179049]
[1737971746080,0.6333333,99353.0,99352.0,0.00179049]
[1737971746975,0.60316686,99353.0,99352.0,0.00179049]
[1737971747392,0.14884683,99350.0,99328.0,0.201353]
[1737971747618,0.150989,99345.0,99338.0,0.150999]
[1737971747819,0.24833629,99345.0,99338.0,0.150999]
[1737971748030,0.0490191,99344.0,99338.0,0.150999]
[1737971748211,0.0490191,99344.0,99328.0,9.999e-05]
[1737971748418,0.0490191,99344.0,99340.0,0.150996]
[1737971748979,0.0490191,99344.0,99328.0,9.999e-05]
[1737971748980,0.0490191,99344.0,99343.0,0.150992]
[1737971749410,0.33599604,99353.0,99352.0,0.150978]
[1737971749581,0.43334333,99353.0,99352.0,0.150978]
[1737971749981,0.43334333,99353.0,99349.0,0.150982]
[1737971750203,0.43334333,99353.0,99350.0,0.15098]
[1737971750409,0.43334333,99353.0,99340.0,0.201328]
[1737971750608,0.43334333,99353.0,99329.0,0.552702]
[1737971750762,0.04902337,99352.0,99329.0,0.15]
[1737971750968,0.04902337,99352.0,99349.0,0.150981]
[1737971751164,0.04902337,99352.0,99330.0,0.15]
[1737971751165,0.04902337,99352.0,99351.0,0.150979]
[1737971751925,0.33599604,99353.0,99352.0,0.150978]
[1737971752823,0.35485088,99353.0,99352.0,0.150978]
[1737971753241,0.35485088,99353.0,99352.0,0.151978]
[1737971753427,0.35485088,99353.0,99352.0,0.150978]
[1737971754883,0.35485088,99353.0,99352.0,0.15127536]
[1737971755906,0.34475901,99353.0,99352.0,0.15227536]
[1737971756116,0.37493305,99353.0,99352.0,0.15127536]
[1737971756543,0.37693305,99353.0,99352.0,0.15127536]
[1737971756757,0.37493305,99353.0,99352.0,0.15127536]
[1737971757809,0.37793305,99353.0,99352.0,0.15127536]
[1737971758256,0.37693305,99353.0,99352.0,0.15127536]
[1737971759303,0.37493305,99353.0,99352.0,0.15127536]
[1737971759435,0.37893305,99353.0,99352.0,0.15127536]
[1737971759949,0.37493305,99353.0,99352.0,0.14627536]
[1737971760184,0.37893305,99353.0,99352.0,0.14627536]
[1737971760791,0.37693305,99353.0,99352.0,0.14627536]
[1737971761024,0.34675901,99353.0,99352.0,0.14627536]
[1737971761197,0.34775901,99353.0,99352.0,0.14627536]
[1737971761577,0.34675901,99353.0,99352.0,0.14627536]
[1737971761991,0.34775901,99353.0,99352.0,0.14627536]
[1737971762405,0.34575901,99353.0,99352.0,0.14627536]
[1737971762815,0.34775901,99353.0,99352.0,0.14627536]
[1737971763025,0.34575901,99353.0,99352.0,0.14627536]
[1737971763685,0.3769202,99353.0,99352.0,0.14627536]
[1737971765046,0.38950755,99353.0,99352.0,0.14627536]
[1737971765485,0.40526473,99353.0,99352.0,0.14627536]
[1737971769111,0.38734275,99353.0,99352.0,0.14627536]
[1737971771790,0.39993048,99353.0,99352.0,0.14627536]
[1737971774446,0.38734275,99353.0,99352.0,0.14627536]
[1737971779739,0.39993017,99353.0,99352.0,0.14627536]
[1737971779954,0.39993017,99353.0,99352.0,0.14610169]
[1737971782181,0.38734275,99353.0,99352.0,0.14610169]
[1737971782756,0.38734275,99353.0,99352.0,0.00029736]
[1737971783827,0.48369004,99353.0,99352.0,0.00029736]
[1737971784056,0.38634275,99353.0,99352.0,0.00029736]
[1737971784280,0.38634275,99353.0,99352.0,0.15127536]
[1737971784493,0.40093127,99353.0,99352.0,0.23077536]
[1737971784911,0.39993127,99353.0,99352.0,0.23077536]
[1737971785328,0.38734275,99353.0,99352.0,0.23077536]
[1737971786365,0.38534275,99353.0,99352.0,0.23077536]
[1737971786568,0.35518156,99353.0,99352.0,0.23077536]
[1737971786824,0.35618156,99353.0,99352.0,0.23077536]
[1737971787337,0.35718156,99353.0,99352.0,0.23077536]
[1737971789019,0.38736347,99353.0,99352.0,0.23077536]
[1737971790226,0.37160629,99353.0,99352.0,0.23077536]
[1737971790673,0.37160629,99353.0,99352.0,0.15127536]
[1737971791149,0.37060629,99353.0,99352.0,0.15127536]
[1737971791587,0.37160629,99353.0,99352.0,0.15127536]
[1737971792891,0.06105843,99353.0,99352.0,0.30127536]
[1737971793108,0.06105843,99353.0,99352.0,0.52502265]
[1737971793314,0.06105843,99353.0,99352.0,0.55641585]
[1737971793520,0.01202168,99353.0,99352.0,0.55641585]
[1737971793724,0.01202168,99353.0,99352.0,0.56669325]
[1737971794142,0.00602168,99353.0,99352.0,0.56669325]
[1737971794374,0.00602168,99353.0,99352.0,0.53530005]
[1737971794516,0.00602168,99353.0,99352.0,0.53630005]
[1737971809723,0.00602168,99353.0,99352.0,0.56761321]
[1737971810387,0.00602168,99353.0,99352.0,0.53630005]
[1737971812098,0.00602168,99353.0,99352.0,0.43895276]
[1737971815513,0.00602168,99353.0,99352.0,0.23985276]
[1737971815731,0.00602168,99353.0,99352.0,0.16255276]
[1737971815941,0.00602168,99353.0,99352.0,0.31255276]
[1737971817181,0.02484961,99353.0,99352.0,0.31255276]
[1737971817603,0.02484961,99353.0,99352.0,0.31155276]
[1737971820845,0.1221969,99353.0,99352.0,0.00029736]
[1737971821250,0.2731729,99353.0,99352.0,0.00029736]
[1737971821453,0.30334008,99353.0,99352.0,0.00029736]
[1737971821847,0.15236408,99353.0,99352.0,0.00029736]
[1737971822090,0.15236408,99353.0,99348.0,0.15089995]
[1737971822346,0.1221969,99353.0,99348.0,0.15089995]
[1737971822560,0.0802,99352.0,99348.0,0.15089995]
[1737971823091,0.0802,99352.0,99343.0,0.20132]
[1737971823289,0.01882793,99351.0,99349.0,0.150982]
[1737971824377,0.01882793,99351.0,99343.0,0.20132]
[1737971824556,0.01882793,99351.0,99338.0,0.201331]
[1737971824557,0.01882793,99350.0,99334.0,0.15]
[1737971824761,0.01882793,99350.0,99347.0,0.150985]
[1737971824967,0.01882793,99350.0,99348.0,0.00029736]
[1737971825370,0.01882793,99350.0,99348.0,0.15128036]
[1737971825602,0.19992188,99349.0,99348.0,0.00029736]
[1737971825828,0.04893988,99349.0,99348.0,0.00029736]
[1737971827968,0.04893988,99349.0,99348.0,0.15128136]
[1737971828387,0.04993988,99349.0,99348.0,0.30128136]
[1737971828793,0.01982793,99349.0,99348.0,1.80128136]
[1737971828951,0.01982793,99349.0,99348.0,0.31112325]
[1737971829153,0.01882793,99349.0,99348.0,0.31112325]
[1737971829921,0.00602168,99353.0,99352.0,0.300978]
[1737971831273,0.02483262,99353.0,99352.0,0.300978]
[1737971832134,0.02783262,99353.0,99352.0,0.300978]
[1737971832690,0.02883262,99353.0,99352.0,0.300978]
[1737971833358,0.02783262,99353.0,99352.0,0.300978]
[1737971834614,0.02483262,99353.0,99352.0,0.300978]
[1737971836039,0.02583262,99353.0,99352.0,0.300978]
[1737971836245,0.00702168,99353.0,99352.0,0.300978]
[1737971836446,0.00602168,99353.0,99352.0,0.300978]
[1737971838440,0.00602168,99353.0,99352.0,0.49802529]
[1737971838654,0.00602168,99353.0,99352.0,0.49902529]
[1737971838858,0.00602168,99353.0,99352.0,0.49802529]
[1737971839214,0.00602168,99353.0,99352.0,0.49902529]
[1737971839412,0.00602168,99353.0,99352.0,0.49802529]
[1737971839679,0.00602168,99353.0,99352.0,0.150978]
[1737971839794,0.00602168,99353.0,99352.0,0.151978]
[1737971840425,0.02483477,99353.0,99352.0,0.151978]
[1737971841169,0.02483477,99353.0,99352.0,0.150978]
[1737971841389,0.02483477,99353.0,99352.0,0.301978]
[1737971841732,0.02483477,99353.0,99352.0,0.300978]
[1737971842098,0.02583477,99353.0,99352.0,0.300978]
[1737971842269,0.02683477,99353.0,99352.0,0.300978]
[1737971842710,0.00802168,99353.0,99352.0,0.300978]
[1737971842938,0.00602168,99353.0,99352.0,0.300978]
[1737971843533,0.005852,99353.0,99352.0,0.300978]
[1737971843754,0.005852,99353.0,99352.0,0.42132529]
[1737971844321,0.005852,99353.0,99352.0,0.42232529]
[1737971844680,0.005852,99353.0,99352.0,0.42132529]
[1737971845043,0.005852,99353.0,99352.0,0.42232529]
[1737971845239,0.005852,99353.0,99352.0,0.42132529]
[1737971845396,0.005852,99353.0,99352.0,0.300978]
[1737971845620,0.005852,99353.0,99352.0,0.301978]
[1737971845824,0.005852,99353.0,99352.0,0.300978]
[1737971846256,0.005852,99353.0,99352.0,0.301978]
[1737971847704,0.005852,99353.0,99352.0,0.30127536]
[1737971847926,0.005852,99353.0,99352.0,0.30227536]
[1737971848125,0.0059936,99353.0,99352.0,0.30227536]
[1737971848452,0.0059936,99353.0,99352.0,0.30127536]
[1737971848680,0.0059936,99353.0,99352.0,0.30227536]
[1737971850259,0.0059936,99353.0,99352.0,0.42262265]
[1737971851021,0.0059936,99353.0,99352.0,0.42162265]
[1737971851225,0.0059936,99353.0,99352.0,0.42262265]
[1737971851654,0.0059936,99353.0,99352.0,0.42162265]
[1737971852054,0.0059936,99353.0,99352.0,0.42262265]
[1737971852512,0.0059936,99353.0,99352.0,0.42162265]
[1737971852672,0.0059936,99353.0,99352.0,0.54612265]
[1737971852853,0.0059936,99353.0,99352.0,0.57851088]
[1737971853479,0.0059936,99353.0,99352.0,2.07851088]
[1737971854691,0.0059936,99353.0,99352.0,2.07751088]
[1737971855040,0.0059936,99353.0,99352.0,2.08051088]
[1737971855453,0.0059936,99353.0,99352.0,2.07751088]
[1737971855877,0.0059936,99353.0,99352.0,2.08151088]
[1737971856390,0.0059936,99353.0,99352.0,2.07751088]
[1737971856792,0.0059936,99353.0,99352.0,0.57751088]
[1737971857068,0.0059936,99353.0,99352.0,0.57951088]
[1737971857296,0.0059936,99353.0,99352.0,2.07951088]
[1737971858677,6e-07,99353.0,99352.0,2.35115488]
[1737971858882,6e-07,99353.0,99352.0,2.08351088]
[1737971859668,6e-07,99353.0,99352.0,2.09951088]
[1737971860052,6e-07,99353.0,99352.0,2.10851088]
[1737971860257,0.0001416,99370.0,99369.0,0.150952]
[1737971860465,0.0001416,99370.0,99369.0,0.5798936]
[1737971860853,0.0001416,99370.0,99369.0,0.57888752]
[1737971861281,0.0001416,99370.0,99369.0,2.07888752]
[1737971861703,0.00019088,99370.0,99369.0,2.07888752]
[1737971861908,0.00019088,99370.0,99369.0,2.07988752]
[1737971862057,0.00019088,99370.0,99369.0,0.57988752]
[1737971862598,0.15089,99410.0,99405.0,0.150897]
[1737971862752,0.09734729,99409.0,99405.0,0.150897]
[1737971862957,0.09734729,99409.0,99402.0,0.201201]
[1737971863149,0.01880464,99408.0,99404.0,0.150898]
[1737971863919,0.01880464,99408.0,99398.0,0.201209]
[1737971864119,0.01880464,99407.0,99403.0,0.1509]
[1737971864509,0.09734729,99406.0,99388.0,0.20123]
[1737971864737,0.0823,99399.0,99370.0,0.201267]
[1737971864947,0.0823,99399.0,99371.0,0.15]
[1737971864948,0.09734729,99398.0,99371.0,0.15]
[1737971865355,0.09734729,99398.0,99369.0,0.01025528]
[1737971865526,0.047,99397.0,99361.0,0.201285]
[1737971865726,0.0823,99389.0,99361.0,0.201285]
[1737971865929,0.09734729,99388.0,99361.0,0.201285]
[1737971866296,0.09734729,99388.0,99375.0,0.150942]
[1737971866496,0.09734729,99388.0,99357.0,0.15]
[1737971866702,0.09734729,99388.0,99378.0,0.201251]
[1737971866908,0.04888373,99387.0,99383.0,0.15093]
[1737971867083,0.09734729,99386.0,99381.0,0.150933]
[1737971867283,0.09734729,99386.0,99382.0,0.150931]
[1737971867552,0.09734729,99386.0,99384.0,0.150928]
[1737971867757,0.09734729,99386.0,99366.0,0.201274]
[1737971867971,0.09734729,99386.0,99381.0,0.150932]
[1737971868175,0.04888373,99385.0,99379.0,0.201249]
[1737971868377,0.09734729,99384.0,99381.0,0.001]
[1737971868506,0.09734729,99384.0,99383.0,0.150931]
[1737971869141,0.14623102,99384.0,99383.0,0.150931]
[1737971869541,0.14823102,99384.0,99383.0,0.150931]
[1737971869967,0.04888373,99384.0,99383.0,0.150931]
[1737971870191,0.05188373,99384.0,99383.0,0.150931]
[1737971870570,0.04888373,99384.0,99383.0,0.150931]
[1737971870773,0.04988373,99384.0,99383.0,0.150931]
[1737971870972,0.05088373,99384.0,99383.0,0.150931]
[1737971871312,0.04988373,99384.0,99383.0,0.150931]
[1737971871661,0.05088373,99384.0,99383.0,0.150931]
[1737971872167,0.04988373,99384.0,99383.0,0.150931]
[1737971872571,0.05088373,99384.0,99383.0,0.150931]
[1737971872975,0.04988373,99384.0,99383.0,0.150931]
[1737971873317,0.04988373,99384.0,99383.0,0.15122815]
[1737971873974,0.05188373,99384.0,99383.0,0.15122815]
[1737971874173,0.05088373,99384.0,99383.0,0.15122815]
[1737971874616,0.05188373,99384.0,99383.0,0.15122815]
[1737971875021,0.05088373,99384.0,99383.0,0.15122815]
[1737971875481,0.04988373,99384.0,99383.0,0.15122815]
[1737971875862,0.05188373,99384.0,99383.0,0.15122815]
[1737971876396,0.12768373,99384.0,99383.0,0.00029715]
[1737971876600,0.37596002,99384.0,99383.0,0.00029715]
[1737971877366,0.37296002,99384.0,99383.0,0.00029715]
[1737971877840,0.150941,99377.0,99369.0,0.15083792]
[1737971878057,0.09734729,99376.0,99369.0,0.15083792]
[1737971878227,0.24828929,99376.0,99369.0,0.15083792]
[1737971878427,0.09734729,99376.0,99360.0,0.01017088]
[1737971878656,0.09734729,99376.0,99375.0,0.150943]
[1737971878990,0.09634729,99376.0,99375.0,0.150943]
[1737971879230,0.09684033,99376.0,99375.0,0.150943]
[1737971879875,0.14572757,99376.0,99375.0,0.150943]
[1737971880040,0.14572757,99376.0,99371.0,0.201265]
[1737971880290,0.05038028,99376.0,99369.0,0.002]
[1737971880542,0.04938028,99376.0,99375.0,0.150943]
[1737971880791,0.05138028,99376.0,99375.0,0.150943]
[1737971881411,0.06396618,99376.0,99375.0,0.150943]
[1737971881789,0.06496618,99376.0,99375.0,0.150943]
[1737971882717,0.06296618,99376.0,99375.0,0.150943]
[1737971883573,0.06496618,99376.0,99375.0,0.150943]
[1737971884146,0.06496618,99376.0,99361.0,0.201285]
[1737971884370,0.150947,99373.0,99365.0,0.150957]
[1737971884609,0.09734729,99372.0,99365.0,0.150957]
[1737971884752,0.150949,99371.0,99364.0,0.150958]
[1737971884951,0.325559,99374.0,99364.0,0.150958]
[1737971884952,0.24829829,99370.0,99364.0,0.150958]
[1737971885201,0.09734729,99370.0,99364.0,0.150959]
[1737971885566,0.24829829,99370.0,99364.0,0.150959]
[1737971886531,0.150952,99369.0,99364.0,0.150959]
[1737971886803,0.09734729,99368.0,99364.0,0.150959]
[1737971888379,0.09734729,99368.0,99367.0,0.150955]
[1737971888789,0.004,99370.0,99367.0,0.150955]
[1737971888790,0.004,99370.0,99369.0,0.150952]
[1737971889166,0.01025386,99374.0,99370.0,0.15095]
[1737971889394,0.01025386,99374.0,99367.0,0.150955]
[1737971889395,0.09734729,99374.0,99367.0,0.150955]
[1737971889597,0.09734729,99374.0,99372.0,0.150947]
[1737971889797,0.09734729,99374.0,99363.0,0.201281]
[1737971890002,0.09734729,99374.0,99373.0,0.150946]
[1737971891480,0.14619217,99374.0,99373.0,0.150946]
[1737971891984,0.14719217,99374.0,99373.0,0.150946]
[1737971892542,0.11713378,99374.0,99373.0,0.150946]
[1737971892750,0.02178649,99374.0,99373.0,0.150946]
[1737971893051,0.01978649,99374.0,99373.0,0.150946]
[1737971893471,0.01878649,99374.0,99371.0,0.150949]
[1737971893678,0.01878649,99374.0,99357.0,0.201292]
[1737971893853,0.01978649,99374.0,99370.0,0.150949]
[1737971894057,0.01978649,99374.0,99373.0,0.150946]
[1737971894274,0.01878649,99374.0,99373.0,0.150946]
[1737971894497,0.00063464,99376.0,99374.0,0.150944]
[1737971894675,0.001,99374.0,99373.0,0.001]
[1737971894881,0.00063464,99376.0,99373.0,0.001]
[1737971895079,0.24892393,99376.0,99373.0,0.001]
[1737971895534,0.01880848,99375.0,99373.0,0.001]
[1737971896001,0.01880848,99375.0,99370.0,0.15095]
[1737971896152,0.001,99374.0,99370.0,0.15095]
[1737971896438,0.01880848,99375.0,99370.0,0.15095]
[1737971896641,0.01880848,99375.0,99372.0,0.150947]
[1737971896847,0.01880848,99373.0,99372.0,0.150947]
[1737971898315,0.01980848,99373.0,99372.0,0.150947]
[1737971898947,0.001,99373.0,99372.0,0.150947]
[1737971899560,0.00063464,99376.0,99375.0,0.150943]
[1737971901024,0.00463464,99376.0,99375.0,0.150943]
[1737971901430,0.00663464,99376.0,99375.0,0.150943]
[1737971907885,0.02546125,99376.0,99375.0,0.150943]
[1737971911062,0.02546125,99376.0,99373.0,0.00029736]
[1737971911821,0.1161739,99375.0,99373.0,0.00029736]
[1737971912021,0.1161739,99375.0,99373.0,0.15124336]
[1737971912458,0.1161739,99375.0,99371.0,0.14824636]
[1737971912619,0.01882661,99374.0,99371.0,0.14824636]
[1737971912819,0.01882661,99374.0,99363.0,0.20128]
[1737971912820,0.09734729,99373.0,99363.0,0.20128]
[1737971913123,0.09734729,99373.0,99370.0,0.15095]
[1737971913433,0.09734729,99373.0,99367.0,0.150955]
[1737971913776,0.01882661,99372.0,99364.0,0.20128]
[1737971913975,0.09734729,99371.0,99368.0,0.150954]
[1737971914174,0.09734729,99371.0,99364.0,0.20128]
[1737971914376,0.09734729,99371.0,99369.0,0.150951]
[1737971914773,0.150953,99369.0,99363.0,0.150961]
[1737971914978,0.09734729,99368.0,99352.0,0.20159936]
[1737971915180,0.09734729,99368.0,99354.0,0.2013]
[1737971915387,0.09734729,99368.0,99352.0,0.20159936]
[1737971915565,0.24830129,99368.0,99362.0,0.150963]
[1737971915766,0.09734729,99368.0,99352.0,0.00029736]
[1737971915974,0.09734729,99368.0,99362.0,0.150961]
[1737971916175,0.01882661,99367.0,99362.0,0.150961]
[1737971916541,0.1161739,99367.0,99360.0,0.201287]
[1737971916746,0.150958,99366.0,99360.0,0.201287]
[1737971916958,0.150959,99365.0,99352.0,0.00329736]
[1737971917195,0.15097,99358.0,99352.0,0.15127436]
[1737971917398,0.09734729,99358.0,99354.0,0.001]
[1737971917602,0.09734729,99357.0,99354.0,0.001]
[1737971917804,0.02005667,99355.0,99352.0,0.00029736]
[1737971918011,0.09734729,99354.0,99352.0,0.00029736]
[1737971918138,0.09734729,99354.0,99352.0,0.00429736]
[1737971918566,0.24832229,99354.0,99352.0,0.00329736]
[1737971919176,0.01881216,99353.0,99352.0,0.00329736]
[1737971919369,0.11615945,99353.0,99352.0,0.00029736]
[1737971920440,0.11615945,99353.0,99352.0,0.15127536]
[1737971920801,0.11615945,99353.0,99352.0,0.00029736]
[1737971921015,0.11815945,99353.0,99352.0,0.00029736]
[1737971921408,0.11815945,99353.0,99352.0,0.15127536]
[1737971921673,0.11815945,99353.0,99352.0,0.00029736]
[1737971921926,0.11915945,99353.0,99352.0,0.00029736]
[1737971922550,0.11915945,99353.0,99352.0,0.15127536]
[1737971922751,0.11915945,99353.0,99352.0,0.00029736]
[1737971923740,0.11915945,99353.0,99352.0,0.15127536]
[1737971925853,0.02181216,99353.0,99352.0,0.27587536]
[1737971926790,0.01981216,99353.0,99352.0,0.27587536]
[1737971927263,0.02061427,99371.0,99352.0,0.27587536]
[1737971927457,0.02061427,99371.0,99370.0,1.12618784]
[1737971927611,0.11796156,99371.0,99370.0,1.12618784]
[1737971928485,0.14404782,99371.0,99370.0,1.12618784]
[1737971929459,0.11396156,99371.0,99370.0,1.12618784]
[1737971929637,0.11396156,99371.0,99370.0,1.27713784]
[1737971930732,0.11396156,99371.0,99370.0,1.12618784]
[1737971931081,0.11396156,99371.0,99370.0,1.27713784]
[1737971931770,0.11396156,99371.0,99370.0,1.12618784]
[1737971934050,0.11410316,99371.0,99370.0,1.12618784]
[1737971934249,0.11410316,99371.0,99370.0,1.27713784]
[1737971934523,0.14418942,99371.0,99370.0,1.27713784]
[1737971934725,0.14418942,99371.0,99370.0,1.12618784]
[1737971936593,0.29513842,99371.0,99370.0,1.12618784]
[1737971937034,0.14418942,99371.0,99370.0,1.12618784]
[1737971940010,0.03022786,99371.0,99370.0,1.40573784]
[1737971940553,0.04906161,99371.0,99370.0,1.55573784]
[1737971940981,0.05006161,99371.0,99370.0,1.55573784]
[1737971941694,0.01997535,99371.0,99370.0,1.55573784]
[1737971942305,0.01897535,99371.0,99370.0,1.55573784]
[1737971942706,0.02097535,99371.0,99370.0,1.55573784]
[1737971943171,0.02197535,99371.0,99370.0,1.55573784]
[1737971946614,0.0031416,99371.0,99370.0,1.55573784]
[1737971947026,0.0001416,99371.0,99370.0,1.55573784]
[1737971947219,0.0001416,99371.0,99370.0,1.55673784]
[1737971948413,0.0001416,99371.0,99370.0,1.65408513]
[1737971948829,6e-07,99371.0,99370.0,1.67708513]
[1737971949039,0.00063464,99376.0,99370.0,1.67708513]
[1737971949040,2.4e-07,99376.0,99375.0,0.450143]
[1737971949223,0.01880371,99404.0,99403.0,0.4271]
[1737971949425,0.01891283,99404.0,99403.0,0.4271]
[1737971949629,0.00010912,99404.0,99403.0,0.4271]
[1737971951017,0.00010912,99404.0,99403.0,0.4321]
[1737971952209,0.00010912,99404.0,99403.0,0.4281]
[1737971952610,0.00010912,99404.0,99403.0,0.4291]
[1737971954943,1.2e-07,99404.0,99403.0,0.54944729]
[1737971955552,1.2e-07,99404.0,99403.0,2.04944729]
[1737971955927,1.2e-07,99404.0,99403.0,2.04844729]
[1737971956078,1.2e-07,99404.0,99403.0,0.55544729]
[1737971956641,1.2e-07,99404.0,99403.0,0.55844729]
[1737971956937,1.2e-07,99404.0,99403.0,0.55544729]
[1737971957345,1.2e-07,99404.0,99403.0,0.55844729]
[1737971958396,7.2e-07,99404.0,99403.0,0.55844729]
[1737971958874,7.2e-07,99404.0,99403.0,0.55544729]
[1737971959115,2.2e-07,99410.0,99409.0,0.399691]
[1737971959354,2.2e-07,99410.0,99409.0,0.54303829]
[1737971960809,2.2e-07,99410.0,99409.0,0.54803829]
[1737971961046,8.2e-07,99413.0,99412.0,0.300887]
[1737971961218,8.2e-07,99413.0,99412.0,0.49703429]
[1737971962681,8.2e-07,99413.0,99412.0,0.50203429]
[1737971963093,8.2e-07,99413.0,99412.0,0.50403429]
[1737971964894,8.2e-07,99413.0,99412.0,0.51414937]
[1737971965414,8.2e-07,99413.0,99412.0,0.51214937]
[1737971965618,8.2e-07,99413.0,99412.0,0.50714937]
[1737971965925,8.2e-07,99413.0,99412.0,0.51414937]
[1737971966652,8.2e-07,99413.0,99412.0,0.50914937]
[1737971966857,8.2e-07,99413.0,99412.0,0.50714937]
[1737971967053,8.2e-07,99413.0,99412.0,0.51214937]
[1737971967257,8.2e-07,99413.0,99412.0,0.51414937]
[1737971968043,8.2e-07,99413.0,99412.0,0.52498937]
[1737971968460,8.2e-07,99413.0,99412.0,0.52298937]
[1737971968872,8.2e-07,99413.0,99412.0,0.51998937]
[1737971969282,8.2e-07,99413.0,99412.0,0.52298937]
[1737971969476,8.2e-07,99413.0,99412.0,0.51798937]
[1737971969671,8.2e-07,99413.0,99412.0,0.51998937]
[1737971969832,8.2e-07,99413.0,99412.0,0.52498937]
[1737971970268,8.2e-07,99413.0,99412.0,2.02498937]
[1737971971339,8.2e-07,99413.0,99412.0,2.05613915]
[1737971971563,8.2e-07,99413.0,99412.0,2.02498937]
[1737971971691,8.2e-07,99413.0,99412.0,0.52498937]
[1737971971898,8.2e-07,99413.0,99412.0,0.51414937]
[1737971972102,8.2e-07,99413.0,99412.0,0.52494937]
[1737971972419,8.2e-07,99413.0,99412.0,0.51414937]
[1737971972609,8.2e-07,99413.0,99412.0,0.51794937]
[1737971972993,8.2e-07,99413.0,99412.0,0.34994937]
[1737971973224,8.2e-07,99413.0,99412.0,0.34494937]
[1737971973374,8.2e-07,99413.0,99412.0,0.27114937]
[1737971973762,8.2e-07,99413.0,99412.0,0.27414937]
[1737971973971,8.2e-07,99413.0,99412.0,0.17380208]
[1737971974351,8.2e-07,99413.0,99412.0,0.16300208]
[1737971974920,8.2e-07,99413.0,99412.0,0.150887]
[1737971975153,0.29783311,99413.0,99412.0,0.002]
[1737971975359,0.37893311,99413.0,99412.0,0.006]
[1737971975587,0.42761463,99413.0,99412.0,0.006]
[1737971975759,0.201182,99412.0,99399.0,0.150906]
[1737971975955,0.09734729,99411.0,99397.0,0.201211]
[1737971976159,0.150899,99404.0,99394.0,0.201218]
[1737971976505,0.24824629,99404.0,99398.0,0.150908]
[1737971976738,0.29692781,99404.0,99399.0,0.150906]
[1737971977135,0.29692781,99404.0,99394.0,0.201218]
[1737971977682,0.29692781,99404.0,99399.0,0.150906]
[1737971978555,0.29692781,99404.0,99397.0,0.150908]
[1737971978758,0.30092781,99404.0,99394.0,0.201218]
[1737971978891,0.15002881,99404.0,99395.0,0.1507901]
[1737971979090,0.15002881,99404.0,99394.0,0.00010912]
[1737971979294,0.150905,99400.0,99394.0,0.00010912]
[1737971979498,0.15102881,99404.0,99394.0,0.15102312]
[1737971979738,0.09734729,99403.0,99394.0,0.00010912]
[1737971979961,0.150907,99399.0,99394.0,0.00010912]
[1737971980118,0.201205,99401.0,99394.0,0.00010912]
[1737971980320,0.15091,99397.0,99394.0,0.00010912]
[1737971980523,0.09734729,99400.0,99394.0,0.00010912]
[1737971980697,0.150909,99398.0,99394.0,0.00010912]
[1737971980903,0.09734729,99400.0,99394.0,0.00010912]
[1737971981532,0.04868152,99397.0,99394.0,0.00010912]
[1737971982489,0.04868152,99396.0,99394.0,0.00010912]
[1737971982645,0.04868152,99396.0,99395.0,0.150913]
[1737971983422,0.04868152,99396.0,99394.0,0.00010912]
[1737971983623,0.04868152,99396.0,99394.0,0.15102312]
[1737971983867,0.04868152,99396.0,99394.0,0.15132048]
[1737971984179,0.04868152,99396.0,99395.0,0.150913]
[1737971984544,0.04868152,99396.0,99394.0,0.00040648]
[1737971984892,0.01976249,99396.0,99395.0,0.150913]
[1737971986444,0.01968152,99402.0,99401.0,0.150903]
[1737971986643,8.2e-07,99413.0,99412.0,0.150887]
[1737971989113,0.00400082,99413.0,99412.0,0.150887]
[1737971989308,0.00600082,99413.0,99412.0,0.150887]
[1737971990016,8.2e-07,99413.0,99411.0,0.150887]